fUST/lending_fUST_20260531
["ID","MTS","AMOUNT","RATE_DAILY","PERIOD"]
[423520002,1780186242000,-992.17,0.0001041,2]
[423520001,1780186242000,-500.0,0.0001041,2]
[423520034,1780186242000,-151.0,0.0001045,2]
[423520030,1780186242000,-214.664679,0.0001045,2]
[423520028,1780186242000,-186209.55686903,0.0001045,2]
[423520044,1780186242000,-335.17574357,0.00010684,2]
[423520032,1780186242000,-151.0,0.0001045,2]
[423520012,1780186242000,-725.02,0.0001041,2]
[423520015,1780186242000,-6772.63,0.0001041,2]
[423520004,1780186242000,-710.7,0.0001041,2]
[423520024,1780186242000,-500.0,0.0001041,2]
[423520019,1780186242000,-1451.47,0.0001041,2]
[423520041,1780186242000,-344.21420177,0.00010684,2]
[423520043,1780186242000,-857.76,0.00010684,2]
[423520010,1780186242000,-500.0,0.0001041,2]
[423520188,1780186243000,-151.0,0.000111,2]
[423520196,1780186243000,-10075.21349452,0.000112,2]
[423520176,1780186243000,-151.0,0.000111,2]
[423520180,1780186243000,-151.0,0.000111,2]
[423520182,1780186243000,-151.0,0.000111,2]
[423520190,1780186243000,-151.0,0.000111,2]
[423520178,1780186243000,-151.0,0.000111,2]
[423520184,1780186243000,-151.0,0.000111,2]
[423520192,1780186243000,-151.0,0.000111,2]
[423520186,1780186243000,-151.0,0.000111,2]
[423520174,1780186243000,-151.0,0.000111,2]
[423520194,1780186243000,-864.0,0.00011157,2]
[423520172,1780186243000,-152.0,0.00011008,7]
[423520200,1780186243000,-151.0,0.000112,2]
[423520239,1780186243000,-500.0,0.00011232,2]
[423520202,1780186243000,-151.0,0.000112,2]
[423520198,1780186243000,-151.0,0.000112,2]
[423520212,1780186243000,-151.0,0.000112,2]
[423520206,1780186243000,-151.0,0.000112,2]
[423520203,1780186243000,-151.0,0.000112,2]
[423520209,1780186243000,-151.0,0.000112,2]
[423520215,1780186243000,-857.76,0.00011232,2]
[423520219,1780186243000,-500.0,0.00011232,2]
[423520223,1780186243000,-1121.98,0.00011232,2]
[423520213,1780186243000,-151.0,0.000112,2]
[423520208,1780186243000,-151.0,0.000112,2]
[423520221,1780186243000,-500.0,0.00011232,2]
[423520225,1780186243000,-597.42,0.00011232,2]
[423520166,1780186243000,-151.0,0.00011,2]
[423520217,1780186243000,-640.94,0.00011232,2]
[423520170,1780186243000,-151.0,0.00011,2]
[423520111,1780186243000,-500.0,0.00010958,2]
[423520168,1780186243000,-151.0,0.00011,2]
[423520109,1780186243000,-500.0,0.00010958,2]
[423520113,1780186243000,-1017.75,0.00010958,2]
[423520117,1780186243000,-992.17,0.00010958,2]
[423520114,1780186243000,-500.0,0.00010958,2]
[423520107,1780186243000,-597.42,0.00010958,2]
[423520119,1780186243000,-710.7,0.00010958,2]
[423520105,1780186243000,-1121.98,0.00010958,2]
[423520132,1780186243000,-500.0,0.00010958,2]
[423520121,1780186243000,-500.0,0.00010958,2]
[423520127,1780186243000,-725.02,0.00010958,2]
[423520130,1780186243000,-6772.63,0.00010958,2]
[423520123,1780186243000,-500.0,0.00010958,2]
[423520125,1780186243000,-500.0,0.00010958,2]
[423520134,1780186243000,-1451.47,0.00010958,2]
[423520128,1780186243000,-502.31,0.00010958,2]
[423520140,1780186243000,-500.0,0.00010958,2]
[423520142,1780186243000,-500.0,0.00010958,2]
[423520136,1780186243000,-500.0,0.00010958,2]
[423520138,1780186243000,-1383.24,0.00010958,2]
[423520144,1780186243000,-298.39630987,0.00010959,3]
[423520149,1780186243000,-151.0,0.00010959,2]
[423520150,1780186243000,-151.0,0.00010959,2]
[423520160,1780186243000,-151.0,0.00011,2]
[423520158,1780186243000,-151.0,0.00011,2]
[423520152,1780186243000,-152.0,0.00010986,7]
[423520147,1780186243000,-15000.0,0.00010959,2]
[423520154,1780186243000,-152.0,0.00010986,7]
[423520156,1780186243000,-10075.21349452,0.00011,2]
[423520162,1780186243000,-151.0,0.00011,2]
[423520164,1780186243000,-151.0,0.00011,2]
[423520229,1780186243000,-500.0,0.00011232,2]
[423520231,1780186243000,-1017.75,0.00011232,2]
[423520243,1780186243000,-500.0,0.00011232,2]
[423520310,1780186243000,-344.46243596,0.00011499,2]
[423520335,1780186243000,-200.0,0.00011505,2]
[423520317,1780186243000,-151.0,0.000115,2]
[423520316,1780186243000,-151.0,0.000115,2]
[423520321,1780186243000,-151.0,0.000115,2]
[423520324,1780186243000,-151.0,0.000115,2]
[423520329,1780186243000,-151.0,0.000115,2]
[423520314,1780186243000,-10075.21349452,0.000115,2]
[423520326,1780186243000,-151.0,0.000115,2]
[423520333,1780186243000,-151.0,0.000115,2]
[423520319,1780186243000,-151.0,0.000115,2]
[423520323,1780186243000,-151.0,0.000115,2]
[423520331,1780186243000,-151.0,0.000115,2]
[423520328,1780186243000,-169.03510474,0.000115,2]
[423520336,1780186243000,-3593.26,0.00011506,2]
[423520345,1780186243000,-1121.98,0.00011506,2]
[423520347,1780186243000,-597.42,0.00011506,2]
[423520342,1780186243000,-500.0,0.00011506,2]
[423520338,1780186243000,-857.76,0.00011506,2]
[423520356,1780186243000,-500.0,0.00011506,2]
[423520349,1780186243000,-500.0,0.00011506,2]
[423520344,1780186243000,-500.0,0.00011506,2]
[423520340,1780186243000,-640.94,0.00011506,2]
[423520351,1780186243000,-282.98150178,0.00011506,2]
[423520353,1780186243000,-1017.75,0.00011506,2]
[423520358,1780186243000,-992.17,0.00011506,2]
[423520360,1780186243000,-710.7,0.00011506,2]
[423520244,1780186243000,-725.02,0.00011232,2]
[423520362,1780186243000,-500.0,0.00011506,2]
[423520290,1780186243000,-10075.21349452,0.000114,2]
[423520312,1780186243000,-42230.12888899,0.000115,2]
[423520364,1780186243000,-500.0,0.00011506,2]
[423520306,1780186243000,-151.0,0.000114,2]
[423520303,1780186243000,-151.0,0.000114,2]
[423520237,1780186243000,-710.7,0.00011232,2]
[423520241,1780186243000,-500.0,0.00011232,2]
[423520227,1780186243000,-500.0,0.00011232,2]
[423520233,1780186243000,-500.0,0.00011232,2]
[423520246,1780186243000,-502.31,0.00011232,2]
[423520248,1780186243000,-6772.63,0.00011232,2]
[423520250,1780186243000,-500.0,0.00011232,2]
[423520254,1780186243000,-1383.24,0.00011232,2]
[423520267,1780186243000,-151.0,0.000113,2]
[423520264,1780186243000,-10075.21349452,0.000113,2]
[423520261,1780186243000,-1912.2170171,0.0001127,2]
[423520257,1780186243000,-500.0,0.00011232,2]
[423520259,1780186243000,-500.0,0.00011232,2]
[423520235,1780186243000,-992.17,0.00011232,2]
[423520308,1780186243000,-200.0,0.00011499,2]
[423520252,1780186243000,-1451.47,0.00011232,2]
[423520279,1780186243000,-151.0,0.000113,2]
[423520273,1780186243000,-151.0,0.000113,2]
[423520284,1780186243000,-151.0,0.000113,2]
[423520304,1780186243000,-151.0,0.000114,2]
[423520295,1780186243000,-151.0,0.000114,2]
[423520270,1780186243000,-151.0,0.000113,2]
[423520301,1780186243000,-151.0,0.000114,2]
[423520276,1780186243000,-151.0,0.000113,2]
[423520282,1780186243000,-151.0,0.000113,2]
[423520287,1780186243000,-151.0,0.000113,2]
[423520293,1780186243000,-151.0,0.000114,2]
[423520297,1780186243000,-151.0,0.000114,2]
[423520299,1780186243000,-151.0,0.000114,2]
[423520444,1780186244000,-500.0,0.0001178,2]
[423520458,1780186244000,-151.0,0.000119,2]
[423520450,1780186244000,-151.0,0.000118,2]
[423520433,1780186244000,-725.02,0.0001178,2]
[423520420,1780186244000,-1017.75,0.0001178,2]
[423520422,1780186244000,-500.0,0.0001178,2]
[423520414,1780186244000,-1121.98,0.0001178,2]
[423520436,1780186244000,-6772.63,0.0001178,2]
[423520434,1780186244000,-502.31,0.0001178,2]
[423520440,1780186244000,-1451.47,0.0001178,2]
[423520418,1780186244000,-500.0,0.0001178,2]
[423520416,1780186244000,-597.42,0.0001178,2]
[423520448,1780186244000,-151.0,0.000118,2]
[423520445,1780186244000,-500.0,0.0001178,2]
[423520456,1780186244000,-53130.92063913,0.000119,2]
[423520452,1780186244000,-151.0,0.000118,2]
[423520454,1780186244000,-200.0,0.00011899,2]
[423520442,1780186244000,-1383.24,0.0001178,2]
[423520460,1780186244000,-109393.64081511,0.00012,2]
[423520447,1780186244000,-10075.21349452,0.000118,2]
[423520474,1780186244000,-577.24381112,0.00012017,2]
[423520462,1780186244000,-150.07,0.00012,2]
[423520476,1780186244000,-3593.26,0.00012054,2]
[423520466,1780186244000,-151.09,0.00012,2]
[423520464,1780186244000,-15000.0,0.00012,2]
[423520431,1780186244000,-500.0,0.0001178,2]
[423520438,1780186244000,-500.0,0.0001178,2]
[423520429,1780186244000,-500.0,0.0001178,2]
[423520405,1780186244000,-3593.26,0.0001178,2]
[423520425,1780186244000,-710.7,0.0001178,2]
[423520373,1780186244000,-500.0,0.00011506,2]
[423520375,1780186244000,-1451.47,0.00011506,2]
[423520379,1780186244000,-500.0,0.00011506,2]
[423520366,1780186244000,-500.0,0.00011506,2]
[423520368,1780186244000,-725.02,0.00011506,2]
[423520377,1780186244000,-1383.24,0.00011506,2]
[423520381,1780186244000,-500.0,0.00011506,2]
[423520370,1780186244000,-502.31,0.00011506,2]
[423520371,1780186244000,-6772.63,0.00011506,2]
[423520385,1780186244000,-151.0,0.000116,2]
[423520383,1780186244000,-10075.21349452,0.000116,2]
[423520386,1780186244000,-151.0,0.000116,2]
[423520388,1780186244000,-151.0,0.000116,2]
[423520407,1780186244000,-857.76,0.0001178,2]
[423520411,1780186244000,-500.0,0.0001178,2]
[423520403,1780186244000,-200.0,0.00011779,2]
[423520402,1780186244000,-15000.0,0.0001175,2]
[423520391,1780186244000,-10075.21349452,0.000117,2]
[423520400,1780186244000,-3629.0,0.00011746,2]
[423520396,1780186244000,-2205.0,0.00011746,2]
[423520390,1780186244000,-151.0,0.000116,2]
[423520395,1780186244000,-151.0,0.000117,2]
[423520398,1780186244000,-1836.0,0.00011746,2]
[423520393,1780186244000,-151.0,0.000117,2]
[423520409,1780186244000,-640.94,0.0001178,2]
[423520412,1780186244000,-500.0,0.0001178,2]
[423520423,1780186244000,-992.17,0.0001178,2]
[423520427,1780186244000,-500.0,0.0001178,2]
[423520472,1780186244000,-1000.0,0.00012,2]
[423520470,1780186244000,-10075.21349452,0.00012,2]
[423520468,1780186244000,-151.09,0.00012,2]
[423520553,1780186244000,-150.07,0.000123,2]
[423520575,1780186244000,-1000.0,0.000123,2]
[423520568,1780186244000,-1000.0,0.000123,2]
[423520564,1780186244000,-1000.0,0.000123,2]
[423520577,1780186244000,-1000.0,0.000123,2]
[423520566,1780186244000,-1000.0,0.000123,2]
[423520570,1780186244000,-1000.0,0.000123,2]
[423520562,1780186244000,-1000.0,0.000123,2]
[423520572,1780186244000,-1000.0,0.000123,2]
[423520558,1780186244000,-6180.15480452,0.000123,2]
[423520560,1780186244000,-1000.0,0.000123,2]
[423520555,1780186244000,-3895.05869,0.000123,2]
[423520573,1780186244000,-1000.0,0.000123,2]
[423520582,1780186244000,-250.0,0.000123,2]
[423520581,1780186244000,-250.0,0.000123,2]
[423520584,1780186244000,-250.0,0.000123,2]
[423520579,1780186244000,-250.0,0.000123,2]
[423520591,1780186244000,-3593.26,0.00012328,2]
[423520593,1780186244000,-857.76,0.00012328,2]
[423520595,1780186244000,-640.94,0.00012328,2]
[423520590,1780186244000,-260.8,0.000123,2]
[423520597,1780186244000,-500.0,0.00012328,2]
[423520588,1780186244000,-250.0,0.000123,2]
[423520586,1780186244000,-250.0,0.000123,2]
[423520599,1780186244000,-500.0,0.00012328,2]
[423520601,1780186244000,-1121.98,0.00012328,2]
[423520478,1780186244000,-857.76,0.00012054,2]
[423520551,1780186244000,-17.17053733,0.00012273,2]
[423520518,1780186244000,-500.0,0.00012054,2]
[423520481,1780186244000,-500.0,0.00012054,2]
[423520535,1780186244000,-982.82946267,0.00012273,2]
[423520520,1780186244000,-279.0,0.00012055,3]
[423520480,1780186244000,-640.94,0.00012054,2]
[423520485,1780186244000,-1121.98,0.00012054,2]
[423520483,1780186244000,-500.0,0.00012054,2]
[423520487,1780186244000,-597.42,0.00012054,2]
[423520489,1780186244000,-415.52534843,0.00012054,2]
[423520491,1780186244000,-1017.75,0.00012054,2]
[423520495,1780186244000,-992.17,0.00012054,2]
[423520501,1780186244000,-500.0,0.00012054,2]
[423520497,1780186244000,-710.7,0.00012054,2]
[423520493,1780186244000,-325.73595101,0.00012054,2]
[423520510,1780186244000,-500.0,0.00012054,2]
[423520508,1780186244000,-6772.63,0.00012054,2]
[423520498,1780186244000,-293.2796527,0.00012054,2]
[423520502,1780186244000,-500.0,0.00012054,2]
[423520504,1780186244000,-725.02,0.00012054,2]
[423520524,1780186244000,-32358.15823798,0.000121,5]
[423520533,1780186244000,-679.768521,0.00012222,2]
[423520531,1780186244000,-419.88426,0.00012222,2]
[423520516,1780186244000,-500.0,0.00012054,2]
[423520522,1780186244000,-192.53619,0.00012082,2]
[423520526,1780186244000,-10075.21349452,0.000121,2]
[423520529,1780186244000,-160.0,0.00012222,2]
[423520514,1780186244000,-1383.24,0.00012054,2]
[423520512,1780186244000,-1451.47,0.00012054,2]
[423520506,1780186244000,-502.31,0.00012054,2]
[423520528,1780186244000,-10075.21349452,0.000122,2]
[423520687,1780186245000,-175.25,0.00012329,2]
[423520692,1780186245000,-5577.195043,0.00012329,2]
[423520674,1780186245000,-627.96,0.00012329,2]
[423520685,1780186245000,-210.3,0.00012329,2]
[423520678,1780186245000,-436.09,0.00012329,2]
[423520680,1780186245000,-363.41,0.00012329,2]
[423520670,1780186245000,-1130.33,0.00012329,2]
[423520689,1780186245000,-876.3,0.00012329,2]
[423520672,1780186245000,-753.56,0.00012329,2]
[423520662,1780186245000,-1953.22,0.00012329,2]
[423520658,1780186245000,-2812.63,0.00012329,2]
[423520694,1780186245000,-5577.195043,0.00012329,2]
[423520681,1780186245000,-302.84,0.00012329,2]
[423520713,1780186245000,-5577.195043,0.00012329,2]
[423520698,1780186245000,-5577.195043,0.00012329,2]
[423520684,1780186245000,-252.36,0.00012329,2]
[423520699,1780186245000,-5577.195043,0.00012329,2]
[423520703,1780186245000,-5577.195043,0.00012329,2]
[423520701,1780186245000,-5577.195043,0.00012329,2]
[423520707,1780186245000,-5577.195043,0.00012329,2]
[423520709,1780186245000,-5577.195043,0.00012329,2]
[423520705,1780186245000,-5577.195043,0.00012329,2]
[423520711,1780186245000,-5577.195043,0.00012329,2]
[423520718,1780186245000,-5577.195043,0.00012329,2]
[423520716,1780186245000,-5577.195043,0.00012329,2]
[423520715,1780186245000,-5577.195043,0.00012329,2]
[423520666,1780186245000,-1356.4,0.00012329,2]
[423520695,1780186245000,-5577.195043,0.00012329,2]
[423520660,1780186245000,-2343.86,0.00012329,2]
[423520638,1780186245000,-19840.72,0.00012329,2]
[423520656,1780186245000,-3375.16,0.00012329,2]
[423520603,1780186245000,-597.42,0.00012328,2]
[423520604,1780186245000,-1017.75,0.00012328,2]
[423520606,1780186245000,-992.17,0.00012328,2]
[423520616,1780186245000,-502.31,0.00012328,2]
[423520618,1780186245000,-6772.63,0.00012328,2]
[423520620,1780186245000,-500.0,0.00012328,2]
[423520612,1780186245000,-500.0,0.00012328,2]
[423520609,1780186245000,-710.7,0.00012328,2]
[423520611,1780186245000,-232.78262934,0.00012328,2]
[423520623,1780186245000,-1451.47,0.00012328,2]
[423520614,1780186245000,-725.02,0.00012328,2]
[423520625,1780186245000,-1383.24,0.00012328,2]
[423520634,1780186245000,-6114.08,0.00012329,2]
[423520642,1780186245000,-14512.56,0.00012329,2]
[423520627,1780186245000,-500.0,0.00012328,2]
[423520720,1780186245000,-5577.195043,0.00012329,2]
[423520632,1780186245000,-500.0,0.00012328,2]
[423520636,1780186245000,-637.94,0.00012329,2]
[423520646,1780186245000,-10078.17,0.00012329,2]
[423520644,1780186245000,-12093.8,0.00012329,2]
[423520647,1780186245000,-8398.48,0.00012329,2]
[423520640,1780186245000,-17415.08,0.00012329,2]
[423520649,1780186245000,-6998.73,0.00012329,2]
[423520653,1780186245000,-4860.23,0.00012329,2]
[423520651,1780186245000,-5832.27,0.00012329,2]
[423520654,1780186245000,-4050.19,0.00012329,2]
[423520668,1780186245000,-1130.33,0.00012329,2]
[423520664,1780186245000,-1627.68,0.00012329,2]
[423520722,1780186245000,-5577.195043,0.00012329,2]
[423520676,1780186245000,-523.3,0.00012329,2]
[423520728,1780186245000,-5577.195034,0.00012329,2]
[423520794,1780186245000,-710.7,0.00012602,2]
[423520798,1780186245000,-725.02,0.00012602,2]
[423520796,1780186245000,-289.11285428,0.00012602,2]
[423520791,1780186245000,-1017.75,0.00012602,2]
[423520800,1780186245000,-502.31,0.00012602,2]
[423520802,1780186245000,-6772.63,0.00012602,2]
[423520804,1780186245000,-500.0,0.00012602,2]
[423520806,1780186245000,-1451.47,0.00012602,2]
[423520808,1780186245000,-1383.24,0.00012602,2]
[423520810,1780186245000,-500.0,0.00012602,2]
[423520812,1780186245000,-500.0,0.00012602,2]
[423520820,1780186245000,-150.07,0.000128,2]
[423520822,1780186245000,-10075.21349452,0.000128,2]
[423520784,1780186245000,-500.0,0.00012602,2]
[423520814,1780186245000,-10075.21349452,0.000127,2]
[423520818,1780186245000,-9762.37443641,0.0001275,2]
[423520824,1780186245000,-626.20972,0.00012872,2]
[423520828,1780186245000,-857.76,0.00012876,2]
[423520826,1780186245000,-3593.26,0.00012876,2]
[423520832,1780186245000,-524.24196551,0.00012876,2]
[423520838,1780186245000,-1017.75,0.00012876,2]
[423520830,1780186245000,-640.94,0.00012876,2]
[423520840,1780186245000,-992.17,0.00012876,2]
[423520844,1780186245000,-725.02,0.00012876,2]
[423520836,1780186245000,-597.42,0.00012876,2]
[423520845,1780186245000,-502.31,0.00012876,2]
[423520842,1780186245000,-710.7,0.00012876,2]
[423520726,1780186245000,-5577.195043,0.00012329,2]
[423520816,1780186245000,-322.987892,0.00012721,2]
[423520783,1780186245000,-641.98689862,0.00012602,2]
[423520834,1780186245000,-1121.98,0.00012876,2]
[423520787,1780186245000,-1121.98,0.00012602,2]
[423520792,1780186245000,-992.17,0.00012602,2]
[423520732,1780186245000,-1877.75341583,0.00012329,2]
[423520730,1780186245000,-151.51839568,0.00012329,2]
[423520734,1780186245000,-160.0,0.00012368,2]
[423520742,1780186245000,-10075.21349452,0.000124,2]
[423520744,1780186245000,-150.07,0.000125,2]
[423520750,1780186245000,-526.98249569,0.000125,2]
[423520748,1780186245000,-574.56543111,0.000125,2]
[423520740,1780186245000,-151.09,0.000124,2]
[423520738,1780186245000,-1468.145273,0.00012368,2]
[423520736,1780186245000,-814.072636,0.00012368,2]
[423520746,1780186245000,-908.23232475,0.000125,2]
[423520764,1780186245000,-197.567207,0.00012506,2]
[423520758,1780186245000,-526.98249569,0.000125,2]
[423520724,1780186245000,-5577.195043,0.00012329,2]
[423520762,1780186245000,-178.783603,0.00012506,2]
[423520766,1780186245000,-354.887098,0.00012506,2]
[423520778,1780186245000,-857.76,0.00012602,2]
[423520789,1780186245000,-597.42,0.00012602,2]
[423520780,1780186245000,-640.94,0.00012602,2]
[423520777,1780186245000,-3593.26,0.00012602,2]
[423520760,1780186245000,-160.0,0.00012506,2]
[423520775,1780186245000,-10075.21349452,0.000126,2]
[423520770,1780186245000,-403.577335,0.00012506,2]
[423520769,1780186245000,-470.665678,0.00012506,2]
[423520754,1780186245000,-526.98249569,0.000125,2]
[423520752,1780186245000,-526.98249569,0.000125,2]
[423520756,1780186245000,-526.98249569,0.000125,2]
[423520773,1780186245000,-574.56543111,0.0001256,2]
[423520949,1780186246000,-556.46075986,0.00013058,2]
[423520944,1780186246000,-181.02526,0.00013017,2]
[423520936,1780186246000,-696.15318421,0.00013,2]
[423520925,1780186246000,-556.46075986,0.00012959,2]
[423520918,1780186246000,-824.0,0.00012893,2]
[423520912,1780186246000,-824.0,0.00012893,2]
[423520922,1780186246000,-838.0,0.00012893,2]
[423520923,1780186246000,-151.09,0.000129,2]
[423520920,1780186246000,-824.0,0.00012893,2]
[423520916,1780186246000,-824.0,0.00012893,2]
[423520909,1780186246000,-824.0,0.00012893,2]
[423520914,1780186246000,-824.0,0.00012893,2]
[423520938,1780186246000,-10075.21349452,0.00013,2]
[423520947,1780186246000,-729.00085402,0.00013048,2]
[423520928,1780186246000,-2695.8,0.00013,2]
[423520934,1780186246000,-20000.0,0.00013,2]
[423520930,1780186246000,-1234.17001705,0.00013,2]
[423520940,1780186246000,-975.622952,0.00013017,2]
[423520942,1780186246000,-204.742556,0.00013017,2]
[423520932,1780186246000,-150.07,0.00013,2]
[423520955,1780186246000,-10075.21349452,0.000131,2]
[423520957,1780186246000,-824.0,0.00013118,2]
[423520953,1780186246000,-696.15318421,0.000131,2]
[423520958,1780186246000,-3593.26,0.0001315,2]
[423520951,1780186246000,-556.46075986,0.00013079,2]
[423520960,1780186246000,-857.76,0.0001315,2]
[423520911,1780186246000,-824.0,0.00012893,2]
[423520962,1780186246000,-640.94,0.0001315,2]
[423520945,1780186246000,-232.833078,0.00013017,2]
[423520901,1780186246000,-824.0,0.00012893,2]
[423520887,1780186246000,-824.0,0.00012893,2]
[423520904,1780186246000,-824.0,0.00012893,2]
[423520970,1780186246000,-992.17,0.0001315,2]
[423520847,1780186246000,-6772.63,0.00012876,2]
[423520849,1780186246000,-500.0,0.00012876,2]
[423520866,1780186246000,-824.0,0.00012893,2]
[423520851,1780186246000,-1451.47,0.00012876,2]
[423520855,1780186246000,-500.0,0.00012876,2]
[423520853,1780186246000,-1383.24,0.00012876,2]
[423520862,1780186246000,-824.0,0.00012893,2]
[423520864,1780186246000,-824.0,0.00012893,2]
[423520872,1780186246000,-824.0,0.00012893,2]
[423520860,1780186246000,-824.0,0.00012893,2]
[423520870,1780186246000,-824.0,0.00012893,2]
[423520858,1780186246000,-556.46075986,0.00012879,2]
[423520907,1780186246000,-824.0,0.00012893,2]
[423520857,1780186246000,-500.0,0.00012876,2]
[423520868,1780186246000,-824.0,0.00012893,2]
[423520889,1780186246000,-824.0,0.00012893,2]
[423520892,1780186246000,-824.0,0.00012893,2]
[423520885,1780186246000,-824.0,0.00012893,2]
[423520882,1780186246000,-824.0,0.00012893,2]
[423520876,1780186246000,-824.0,0.00012893,2]
[423520880,1780186246000,-824.0,0.00012893,2]
[423520895,1780186246000,-824.0,0.00012893,2]
[423520890,1780186246000,-824.0,0.00012893,2]
[423520878,1780186246000,-824.0,0.00012893,2]
[423520897,1780186246000,-824.0,0.00012893,2]
[423520899,1780186246000,-824.0,0.00012893,2]
[423520902,1780186246000,-824.0,0.00012893,2]
[423520874,1780186246000,-824.0,0.00012893,2]
[423520964,1780186246000,-1121.98,0.0001315,2]
[423521051,1780186246000,-824.0,0.00013438,2]
[423520968,1780186246000,-1017.75,0.0001315,2]
[423521040,1780186246000,-6772.63,0.00013424,2]
[423521044,1780186246000,-1451.47,0.00013424,2]
[423521035,1780186246000,-725.02,0.00013424,2]
[423521042,1780186246000,-260.65299958,0.00013424,2]
[423521033,1780186246000,-710.7,0.00013424,2]
[423521031,1780186246000,-992.17,0.00013424,2]
[423521046,1780186246000,-1383.24,0.00013424,2]
[423521048,1780186246000,-500.0,0.00013424,2]
[423521049,1780186246000,-500.0,0.00013424,2]
[423521053,1780186246000,-150.07,0.000135,2]
[423521067,1780186246000,-200.38711,0.0001363,2]
[423521055,1780186246000,-696.15318421,0.000135,2]
[423521063,1780186246000,-6321.68515449,0.00013598,2]
[423521029,1780186246000,-1017.75,0.00013424,2]
[423521071,1780186246000,-500.0,0.00013698,2]
[423521057,1780186246000,-10075.21349452,0.000135,2]
[423521069,1780186246000,-3593.26,0.00013698,2]
[423521061,1780186246000,-244.0,0.000135,2]
[423521085,1780186246000,-857.76,0.00013698,2]
[423521073,1780186246000,-500.0,0.00013698,2]
[423521087,1780186246000,-500.0,0.00013698,2]
[423521075,1780186246000,-500.0,0.00013698,2]
[423521077,1780186246000,-500.0,0.00013698,2]
[423521079,1780186246000,-500.0,0.00013698,2]
[423521089,1780186246000,-500.0,0.00013698,2]
[423521082,1780186246000,-612.35668041,0.00013698,2]
[423521091,1780186246000,-500.0,0.00013698,2]
[423520966,1780186246000,-597.42,0.0001315,2]
[423521065,1780186246000,-10075.21349452,0.000136,2]
[423521038,1780186246000,-502.31,0.00013424,2]
[423521059,1780186246000,-1000.0,0.000135,2]
[423521026,1780186246000,-1121.98,0.00013424,2]
[423520972,1780186246000,-710.7,0.0001315,2]
[423521028,1780186246000,-597.42,0.00013424,2]
[423520987,1780186246000,-500.0,0.0001315,2]
[423520998,1780186246000,-10075.21349452,0.000132,2]
[423520981,1780186246000,-1451.47,0.0001315,2]
[423520983,1780186246000,-1383.24,0.0001315,2]
[423520995,1780186246000,-516.1915213,0.000132,2]
[423520991,1780186246000,-556.46075986,0.00013162,2]
[423520975,1780186246000,-502.31,0.0001315,2]
[423521000,1780186246000,-556.46075986,0.00013236,2]
[423520989,1780186246000,-281.0,0.00013151,3]
[423520985,1780186246000,-500.0,0.0001315,2]
[423520979,1780186246000,-500.0,0.0001315,2]
[423520977,1780186246000,-6772.63,0.0001315,2]
[423520996,1780186246000,-151.09,0.000132,2]
[423520974,1780186246000,-725.02,0.0001315,2]
[423521014,1780186246000,-628.67222295,0.00013344,2]
[423520993,1780186246000,-690.33838244,0.00013177,2]